[Event "Titled Tuesday Blitz August 3 2021"]
[White "Lagunow, Raphael"]
[Black "Berezin, Viktor"]
[WhiteFideId "24652644"]
[BlackFideId "14107872"]
[WhiteElo "2400"]
[BlackElo "2310"]
[Result "1-0"]
[Round "10"]
[TimeControl "180+1"]
[Date "2021.08.03"]
[WhiteClock "0:00:05"]
[BlackClock "0:00:17"]

1. e4 {[%clk 0:03:00]}  d5 {[%clk 0:02:59]} 2. exd5 {[%clk 0:03:00]}  Nf6 {[%clk 0:02:59]} 3. d4 {[%clk 0:03:00]}  Bg4 {[%clk 0:02:59]} 4. Be2 {[%clk 0:02:58]}  Bxe2 {[%clk 0:02:58]} 5. Qxe2 {[%clk 0:02:59]}  Qxd5 {[%clk 0:02:57]} 6. Nf3 {[%clk 0:02:59]}  e6 {[%clk 0:02:56]} 7. O-O {[%clk 0:02:58]}  Be7 {[%clk 0:02:51]} 8. c4 {[%clk 0:02:58]}  Qd8 {[%clk 0:02:50]} 9. Nc3 {[%clk 0:02:57]}  O-O {[%clk 0:02:51]} 10. Bf4 {[%clk 0:02:50]}  Bd6 {[%clk 0:02:43]} 11. Ne5 {[%clk 0:02:44]}  Nbd7 {[%clk 0:02:42]} 12. Rad1 {[%clk 0:02:43]}  Qe7 {[%clk 0:02:41]} 13. Rfe1 {[%clk 0:02:39]}  Rfd8 {[%clk 0:02:36]} 14. h3 {[%clk 0:02:33]}  c5 {[%clk 0:02:32]} 15. Nxd7 {[%clk 0:02:20]}  Rxd7 {[%clk 0:02:22]} 16. Bxd6 {[%clk 0:02:17]}  Qxd6 {[%clk 0:02:18]} 17. dxc5 {[%clk 0:02:17]}  Qxc5 {[%clk 0:02:19]} 18. Ne4 {[%clk 0:02:13]}  Qc6 {[%clk 0:02:04]} 19. Nxf6+ {[%clk 0:02:13]}  gxf6 {[%clk 0:02:05]} 20. Rxd7 {[%clk 0:02:01]}  Qxd7 {[%clk 0:02:06]} 21. Rd1 {[%clk 0:02:00]}  Qc6 {[%clk 0:02:06]} 22. Rd4 {[%clk 0:01:57]}  Kh8 {[%clk 0:02:02]} 23. Qd3 {[%clk 0:01:27]}  Rg8 {[%clk 0:02:00]} 24. Rg4 {[%clk 0:01:28]}  Rxg4 {[%clk 0:01:56]} 25. hxg4 {[%clk 0:01:28]}  Kg7 {[%clk 0:01:57]} 26. Qd4 {[%clk 0:01:24]}  a6 {[%clk 0:01:37]} 27. c5 {[%clk 0:01:05]}  h6 {[%clk 0:01:32]} 28. f4 {[%clk 0:00:58]}  Qc7 {[%clk 0:01:10]} 29. Kf2 {[%clk 0:00:55]}  e5 {[%clk 0:01:07]} 30. fxe5 {[%clk 0:00:53]}  fxe5 {[%clk 0:01:08]} 31. Qd5 {[%clk 0:00:49]}  Kf6 {[%clk 0:00:51]} 32. b4 {[%clk 0:00:44]}  Ke7 {[%clk 0:00:51]} 33. Ke3 {[%clk 0:00:41]}  b6 {[%clk 0:00:49]} 34. c6 {[%clk 0:00:39]}  f6 {[%clk 0:00:45]} 35. Ke4 {[%clk 0:00:35]}  Qc8 {[%clk 0:00:45]} 36. Kf3 {[%clk 0:00:28]}  Qe6 {[%clk 0:00:32]} 37. Qe4 {[%clk 0:00:27]}  Qxa2 {[%clk 0:00:31]} 38. Qh7+ {[%clk 0:00:27]}  Kf8 {[%clk 0:00:26]} 39. c7 {[%clk 0:00:17]}  Qd5+ {[%clk 0:00:25]} 40. Kg3 {[%clk 0:00:07]}  Qc4 {[%clk 0:00:19]} 41. Qh8+ {[%clk 0:00:06]}  Ke7 {[%clk 0:00:19]} 42. c8=Q {[%clk 0:00:06]}  Qf4+ {[%clk 0:00:20]} 43. Kh3 {[%clk 0:00:06]}  Kf7 {[%clk 0:00:17]} 44. Qh7# {[%clk 0:00:05]} 1-0


[Site "https://www.chess.com"]

[Event "Titled Tuesday Blitz August 3 2021"]
[White "Lazavik, Denis"]
[Black "Solon, Nathan"]
[WhiteFideId "13515110"]
[BlackFideId "2017229"]
[WhiteElo "2436"]
[BlackElo "2655"]
[Result "0-1"]
[Round "10"]
[TimeControl "180+1"]
[Date "2021.08.03"]
[WhiteClock "0:00:02"]
[BlackClock "0:00:07"]

1. d4 {[%clk 0:03:00]}  Nf6 {[%clk 0:02:58]} 2. c4 {[%clk 0:03:01]}  e6 {[%clk 0:02:58]} 3. Nf3 {[%clk 0:03:01]}  d5 {[%clk 0:02:58]} 4. Nc3 {[%clk 0:03:01]}  Bb4 {[%clk 0:02:58]} 5. cxd5 {[%clk 0:02:59]}  exd5 {[%clk 0:02:59]} 6. Bg5 {[%clk 0:02:59]}  h6 {[%clk 0:02:58]} 7. Bh4 {[%clk 0:02:59]}  O-O {[%clk 0:02:58]} 8. e3 {[%clk 0:02:59]}  Bf5 {[%clk 0:02:58]} 9. Be2 {[%clk 0:02:56]}  Nbd7 {[%clk 0:02:58]} 10. O-O {[%clk 0:02:54]}  c6 {[%clk 0:02:53]} 11. Qb3 {[%clk 0:02:48]}  Qb6 {[%clk 0:02:53]} 12. Nd2 {[%clk 0:02:33]}  Bd6 {[%clk 0:02:49]} 13. Bg3 {[%clk 0:02:32]}  Bxg3 {[%clk 0:02:47]} 14. hxg3 {[%clk 0:02:33]}  Rfe8 {[%clk 0:02:43]} 15. Rfc1 {[%clk 0:02:00]}  h5 {[%clk 0:02:39]} 16. a3 {[%clk 0:01:48]}  g6 {[%clk 0:02:33]} 17. Na4 {[%clk 0:01:47]}  Qc7 {[%clk 0:02:22]} 18. Qd1 {[%clk 0:01:39]}  Kg7 {[%clk 0:02:14]} 19. b4 {[%clk 0:01:38]}  a6 {[%clk 0:02:12]} 20. Nc5 {[%clk 0:01:35]}  Rh8 {[%clk 0:01:55]} 21. Nf3 {[%clk 0:01:34]}  Nxc5 {[%clk 0:01:47]} 22. bxc5 {[%clk 0:01:33]}  Ne4 {[%clk 0:01:46]} 23. Rab1 {[%clk 0:01:25]}  Rae8 {[%clk 0:01:45]} 24. Rb3 {[%clk 0:01:23]}  g5 {[%clk 0:01:25]} 25. Bd3 {[%clk 0:01:04]}  h4 {[%clk 0:01:18]} 26. gxh4 {[%clk 0:00:34]}  g4 {[%clk 0:01:06]} 27. Ne5 {[%clk 0:00:34]}  Rxh4 {[%clk 0:00:43]} 28. g3 {[%clk 0:00:29]}  Rh3 {[%clk 0:00:43]} 29. Bxe4 {[%clk 0:00:18]}  dxe4 {[%clk 0:00:40]} 30. Kg2 {[%clk 0:00:13]}  Reh8 {[%clk 0:00:36]} 31. Qg1 {[%clk 0:00:13]}  f6 {[%clk 0:00:28]} 32. Rcb1 {[%clk 0:00:12]}  Bc8 {[%clk 0:00:25]} 33. Nc4 {[%clk 0:00:10]}  Kg6 {[%clk 0:00:08]} 34. Nd6 {[%clk 0:00:10]}  b5 {[%clk 0:00:06]} 35. d5 {[%clk 0:00:05]}  cxd5 {[%clk 0:00:06]} 36. Nxc8 {[%clk 0:00:05]}  Qxc8 {[%clk 0:00:07]} 37. Rc3 {[%clk 0:00:04]}  Qf5 {[%clk 0:00:07]} 38. Kf1 {[%clk 0:00:02]}  Rh1 {[%clk 0:00:07]} 39. Ke1 {[%clk 0:00:02]} 0-1


[Site "https://www.chess.com"]

[Event "Titled Tuesday Blitz August 3 2021"]
[White "Lee, Linden"]
[Black "Shkapenko, Pavel"]
[WhiteFideId "30941830"]
[BlackFideId "4151933"]
[WhiteElo "2496"]
[BlackElo "2386"]
[Result "1-0"]
[Round "10"]
[TimeControl "180+1"]
[Date "2021.08.03"]
[WhiteClock "0:00:18"]
[BlackClock "0:00:19"]

1. d4 {[%clk 0:03:00]}  Nf6 {[%clk 0:02:56]} 2. c4 {[%clk 0:03:01]}  e6 {[%clk 0:02:55]} 3. Nc3 {[%clk 0:03:01]}  Bb4 {[%clk 0:02:56]} 4. e3 {[%clk 0:02:58]}  c5 {[%clk 0:02:56]} 5. Bd3 {[%clk 0:02:58]}  O-O {[%clk 0:02:54]} 6. Ne2 {[%clk 0:02:58]}  cxd4 {[%clk 0:02:52]} 7. exd4 {[%clk 0:02:58]}  d5 {[%clk 0:02:52]} 8. O-O {[%clk 0:02:57]}  dxc4 {[%clk 0:02:52]} 9. Bxc4 {[%clk 0:02:57]}  Nc6 {[%clk 0:02:51]} 10. Bg5 {[%clk 0:02:55]}  Be7 {[%clk 0:02:48]} 11. Rc1 {[%clk 0:02:54]}  b6 {[%clk 0:02:44]} 12. Bd3 {[%clk 0:02:51]}  Nb4 {[%clk 0:02:39]} 13. Bb1 {[%clk 0:02:51]}  Bb7 {[%clk 0:02:34]} 14. a3 {[%clk 0:02:49]}  Nbd5 {[%clk 0:02:33]} 15. Qd3 {[%clk 0:02:45]}  g6 {[%clk 0:02:28]} 16. Rfd1 {[%clk 0:02:35]}  Nxc3 {[%clk 0:02:18]} 17. Nxc3 {[%clk 0:02:33]}  Nd5 {[%clk 0:02:11]} 18. Bh6 {[%clk 0:02:27]}  Re8 {[%clk 0:01:45]} 19. Ne4 {[%clk 0:02:20]}  f5 {[%clk 0:01:38]} 20. Ng3 {[%clk 0:02:10]}  Bg5 {[%clk 0:01:35]} 21. Bxg5 {[%clk 0:02:09]}  Qxg5 {[%clk 0:01:36]} 22. f3 {[%clk 0:01:48]}  Rac8 {[%clk 0:01:32]} 23. Rxc8 {[%clk 0:01:40]}  Rxc8 {[%clk 0:01:31]} 24. Re1 {[%clk 0:01:25]}  Rc1 {[%clk 0:01:27]} 25. Qf1 {[%clk 0:01:15]}  Ne3 {[%clk 0:00:58]} 26. Qe2 {[%clk 0:01:07]}  Rxe1+ {[%clk 0:00:57]} 27. Qxe1 {[%clk 0:01:07]}  h5 {[%clk 0:00:55]} 28. Qe2 {[%clk 0:01:04]}  Qf4 {[%clk 0:00:49]} 29. Ba2 {[%clk 0:00:53]}  Qxd4 {[%clk 0:00:46]} 30. Bxe6+ {[%clk 0:00:53]}  Kg7 {[%clk 0:00:46]} 31. Qf2 {[%clk 0:00:53]}  Qd1+ {[%clk 0:00:35]} 32. Nf1 {[%clk 0:00:52]}  f4 {[%clk 0:00:35]} 33. b4 {[%clk 0:00:46]}  Ba6 {[%clk 0:00:26]} 34. b5 {[%clk 0:00:46]}  Kf6 {[%clk 0:00:19]} 35. Ba2 {[%clk 0:00:35]}  Bb7 {[%clk 0:00:19]} 36. Qb2+ {[%clk 0:00:33]}  Kg5 {[%clk 0:00:19]} 37. Qe5+ {[%clk 0:00:18]}  Nf5 {[%clk 0:00:19]} 38. h4+ {[%clk 0:00:18]} 1-0


[Site "https://www.chess.com"]

[Event "Titled Tuesday Blitz August 3 2021"]
[White "Madaminov, Mukhiddin"]
[Black "Leisch, Lukas"]
[WhiteFideId "14210703"]
[BlackFideId "1632094"]
[WhiteElo "1747"]
[BlackElo "2247"]
[Result "1-0"]
[Round "10"]
[TimeControl "180+1"]
[Date "2021.08.03"]
[WhiteClock "0:02:36"]
[BlackClock "0:00:55"]

1. d4 {[%clk 0:03:00]}  d6 {[%clk 0:02:58]} 2. e4 {[%clk 0:03:00]}  Nf6 {[%clk 0:02:58]} 3. Nc3 {[%clk 0:03:00]}  g6 {[%clk 0:02:59]} 4. f4 {[%clk 0:03:01]}  Bg7 {[%clk 0:02:58]} 5. Bd3 {[%clk 0:03:01]}  Nc6 {[%clk 0:02:58]} 6. Nf3 {[%clk 0:03:02]}  Bg4 {[%clk 0:02:58]} 7. e5 {[%clk 0:03:00]}  dxe5 {[%clk 0:02:56]} 8. dxe5 {[%clk 0:03:01]}  Nd5 {[%clk 0:02:54]} 9. h3 {[%clk 0:03:01]}  Nxc3 {[%clk 0:02:51]} 10. bxc3 {[%clk 0:03:01]}  Bf5 {[%clk 0:02:35]} 11. O-O {[%clk 0:03:00]}  Bxd3 {[%clk 0:02:34]} 12. cxd3 {[%clk 0:03:01]}  Qd5 {[%clk 0:02:33]} 13. Qb3 {[%clk 0:02:55]}  O-O-O {[%clk 0:02:21]} 14. d4 {[%clk 0:02:51]}  Na5 {[%clk 0:02:08]} 15. Qa4 {[%clk 0:02:51]}  b6 {[%clk 0:02:03]} 16. Rb1 {[%clk 0:02:50]}  f6 {[%clk 0:01:50]} 17. Rb5 {[%clk 0:02:48]}  Qb7 {[%clk 0:01:36]} 18. Ba3 {[%clk 0:02:47]}  Rhe8 {[%clk 0:01:25]} 19. Rfb1 {[%clk 0:02:42]}  Rd5 {[%clk 0:01:19]} 20. Rxa5 {[%clk 0:02:39]}  bxa5 {[%clk 0:00:56]} 21. Qxe8+ {[%clk 0:02:35]}  Rd8 {[%clk 0:00:55]} 22. Qxd8+ {[%clk 0:02:36]} 1-0


[Site "https://www.chess.com"]

[Event "Titled Tuesday Blitz August 3 2021"]
[White "Martinez Alcantara, Jose Eduardo"]
[Black "Le, Tuan Minh"]
[WhiteFideId "3805662"]
[BlackFideId "12401153"]
[WhiteElo "2690"]
[BlackElo "2450"]
[Result "1-0"]
[Round "10"]
[TimeControl "180+1"]
[Date "2021.08.03"]
[WhiteClock "0:00:03"]
[BlackClock "0:00:04"]

1. e4 {[%clk 0:03:00]}  c5 {[%clk 0:02:59]} 2. Nf3 {[%clk 0:03:01]}  Nf6 {[%clk 0:03:00]} 3. e5 {[%clk 0:03:01]}  Nd5 {[%clk 0:03:00]} 4. Nc3 {[%clk 0:03:02]}  e6 {[%clk 0:03:01]} 5. Nxd5 {[%clk 0:03:01]}  exd5 {[%clk 0:03:01]} 6. d4 {[%clk 0:03:02]}  Nc6 {[%clk 0:03:02]} 7. dxc5 {[%clk 0:03:03]}  Bxc5 {[%clk 0:03:03]} 8. Qxd5 {[%clk 0:03:03]}  d6 {[%clk 0:03:03]} 9. exd6 {[%clk 0:03:02]}  Qb6 {[%clk 0:03:04]} 10. Qe4+ {[%clk 0:03:02]}  Be6 {[%clk 0:03:03]} 11. Bc4 {[%clk 0:03:01]}  Bxf2+ {[%clk 0:03:02]} 12. Kd1 {[%clk 0:02:59]}  O-O-O {[%clk 0:02:53]} 13. Bxe6+ {[%clk 0:03:00]}  fxe6 {[%clk 0:02:53]} 14. c3 {[%clk 0:03:00]}  Rxd6+ {[%clk 0:02:34]} 15. Kc2 {[%clk 0:03:00]}  Qb5 {[%clk 0:02:31]} 16. Bf4 {[%clk 0:02:38]}  Qd5 {[%clk 0:02:06]} 17. Qxd5 {[%clk 0:02:27]}  Rxd5 {[%clk 0:02:07]} 18. Rhf1 {[%clk 0:02:27]}  Bb6 {[%clk 0:02:02]} 19. Rae1 {[%clk 0:02:26]}  Re8 {[%clk 0:02:03]} 20. Bg3 {[%clk 0:02:16]}  Bc7 {[%clk 0:01:58]} 21. Bxc7 {[%clk 0:02:11]}  Kxc7 {[%clk 0:01:59]} 22. Nd2 {[%clk 0:02:11]}  h6 {[%clk 0:01:51]} 23. Rf7+ {[%clk 0:02:03]}  Rd7 {[%clk 0:01:52]} 24. Rf3 {[%clk 0:02:01]}  Red8 {[%clk 0:01:30]} 25. Nb3 {[%clk 0:01:55]}  e5 {[%clk 0:01:29]} 26. Re2 {[%clk 0:01:41]}  Kb6 {[%clk 0:01:22]} 27. h4 {[%clk 0:01:37]}  Rd1 {[%clk 0:01:17]} 28. Nd2 {[%clk 0:01:34]}  Rh1 {[%clk 0:01:14]} 29. Rg3 {[%clk 0:01:26]}  Rxh4 {[%clk 0:01:11]} 30. Rxg7 {[%clk 0:01:24]}  Re8 {[%clk 0:01:06]} 31. g3 {[%clk 0:01:19]}  Rh5 {[%clk 0:00:46]} 32. Ne4 {[%clk 0:01:17]}  Rc8 {[%clk 0:00:43]} 33. Nd6 {[%clk 0:01:03]}  Nd4+ {[%clk 0:00:22]} 34. Kd3 {[%clk 0:01:03]}  Rc6 {[%clk 0:00:23]} 35. Rxb7+ {[%clk 0:00:47]}  Ka6 {[%clk 0:00:22]} 36. cxd4 {[%clk 0:00:46]}  Rxd6 {[%clk 0:00:20]} 37. Rb4 {[%clk 0:00:43]}  Rg5 {[%clk 0:00:20]} 38. Re3 {[%clk 0:00:39]}  exd4 {[%clk 0:00:20]} 39. Rxd4 {[%clk 0:00:38]}  Rdg6 {[%clk 0:00:21]} 40. g4 {[%clk 0:00:21]}  Rxg4 {[%clk 0:00:21]} 41. Rxg4 {[%clk 0:00:22]}  Rxg4 {[%clk 0:00:21]} 42. Re6+ {[%clk 0:00:23]}  Kb5 {[%clk 0:00:20]} 43. Rxh6 {[%clk 0:00:23]}  Rg2 {[%clk 0:00:21]} 44. Rh7 {[%clk 0:00:18]}  Kb6 {[%clk 0:00:19]} 45. Kc3 {[%clk 0:00:16]}  Rg3+ {[%clk 0:00:19]} 46. Kb4 {[%clk 0:00:16]}  Rg2 {[%clk 0:00:15]} 47. Kb3 {[%clk 0:00:16]}  Rg6 {[%clk 0:00:15]} 48. Rh3 {[%clk 0:00:16]}  a6 {[%clk 0:00:15]} 49. Re3 {[%clk 0:00:15]}  Rg4 {[%clk 0:00:16]} 50. Re6+ {[%clk 0:00:14]}  Kb5 {[%clk 0:00:15]} 51. Re5+ {[%clk 0:00:15]}  Kb6 {[%clk 0:00:16]} 52. Re3 {[%clk 0:00:16]}  Kb5 {[%clk 0:00:16]} 53. a4+ {[%clk 0:00:16]}  Kb6 {[%clk 0:00:16]} 54. Re6+ {[%clk 0:00:15]}  Kb7 {[%clk 0:00:16]} 55. Ka3 {[%clk 0:00:15]}  Rf4 {[%clk 0:00:16]} 56. a5 {[%clk 0:00:13]}  Rg4 {[%clk 0:00:16]} 57. Kb3 {[%clk 0:00:12]}  Rf4 {[%clk 0:00:16]} 58. Rg6 {[%clk 0:00:12]}  Rf5 {[%clk 0:00:16]} 59. Ka4 {[%clk 0:00:11]}  Rf4+ {[%clk 0:00:16]} 60. b4 {[%clk 0:00:11]}  Rh4 {[%clk 0:00:15]} 61. Rg7+ {[%clk 0:00:12]}  Kb8 {[%clk 0:00:15]} 62. Kb3 {[%clk 0:00:12]}  Rf4 {[%clk 0:00:14]} 63. Kc3 {[%clk 0:00:12]}  Rh4 {[%clk 0:00:14]} 64. Rd7 {[%clk 0:00:12]}  Rg4 {[%clk 0:00:13]} 65. Rd4 {[%clk 0:00:09]}  Rg5 {[%clk 0:00:08]} 66. Kc4 {[%clk 0:00:08]}  Kb7 {[%clk 0:00:09]} 67. Rd7+ {[%clk 0:00:08]}  Kc6 {[%clk 0:00:08]} 68. Ra7 {[%clk 0:00:07]}  Rg4+ {[%clk 0:00:06]} 69. Kb3 {[%clk 0:00:07]}  Rg3+ {[%clk 0:00:02]} 70. Ka4 {[%clk 0:00:07]}  Rg1 {[%clk 0:00:01]} 71. Rxa6+ {[%clk 0:00:08]}  Kb7 {[%clk 0:00:01]} 72. Rb6+ {[%clk 0:00:08]}  Kc7 {[%clk 0:00:01]} 73. Rf6 {[%clk 0:00:09]}  Rg5 {[%clk 0:00:02]} 74. a6 {[%clk 0:00:06]}  Kb8 {[%clk 0:00:02]} 75. b5 {[%clk 0:00:06]}  Ka7 {[%clk 0:00:02]} 76. Ka5 {[%clk 0:00:06]}  Rg8 {[%clk 0:00:02]} 77. Rf7+ {[%clk 0:00:06]}  Kb8 {[%clk 0:00:02]} 78. Rf6 {[%clk 0:00:05]}  Ka7 {[%clk 0:00:03]} 79. Rd6 {[%clk 0:00:05]}  Rf8 {[%clk 0:00:03]} 80. b6+ {[%clk 0:00:05]}  Kb8 {[%clk 0:00:03]} 81. Kb5 {[%clk 0:00:06]}  Rg8 {[%clk 0:00:03]} 82. a7+ {[%clk 0:00:02]}  Kb7 {[%clk 0:00:04]} 83. Rd7+ {[%clk 0:00:03]}  Ka8 {[%clk 0:00:04]} 84. Ka6 {[%clk 0:00:03]} 1-0


[Site "https://www.chess.com"]

[Event "Titled Tuesday Blitz August 3 2021"]
[White "Nazaretyan, Tigran"]
[Black "Tomiello, Mateus Costamilan"]
[WhiteFideId "24162345"]
[BlackFideId "22701958"]
[WhiteElo "2214"]
[BlackElo "1995"]
[Result "1-0"]
[Round "10"]
[TimeControl "180+1"]
[Date "2021.08.03"]
[WhiteClock "0:01:32"]
[BlackClock "0:00:07"]

1. d4 {[%clk 0:03:00]}  d5 {[%clk 0:03:00]} 2. Nf3 {[%clk 0:03:00]}  Nf6 {[%clk 0:03:00]} 3. c4 {[%clk 0:03:00]}  c6 {[%clk 0:03:00]} 4. Nc3 {[%clk 0:02:59]}  e6 {[%clk 0:02:59]} 5. e3 {[%clk 0:02:59]}  Nbd7 {[%clk 0:02:56]} 6. Qc2 {[%clk 0:02:59]}  Bd6 {[%clk 0:02:56]} 7. Be2 {[%clk 0:02:59]}  O-O {[%clk 0:02:56]} 8. O-O {[%clk 0:02:59]}  dxc4 {[%clk 0:02:56]} 9. a4 {[%clk 0:02:59]}  e5 {[%clk 0:02:35]} 10. a5 {[%clk 0:02:55]}  Qe7 {[%clk 0:02:25]} 11. h3 {[%clk 0:02:52]}  h6 {[%clk 0:02:12]} 12. Bxc4 {[%clk 0:02:48]}  e4 {[%clk 0:02:03]} 13. Nh4 {[%clk 0:02:45]}  Re8 {[%clk 0:01:27]} 14. Nf5 {[%clk 0:02:37]}  Qf8 {[%clk 0:01:24]} 15. Qb3 {[%clk 0:02:36]}  Bc7 {[%clk 0:01:04]} 16. f3 {[%clk 0:02:21]}  exf3 {[%clk 0:01:01]} 17. Rxf3 {[%clk 0:02:21]}  Rb8 {[%clk 0:00:23]} 18. e4 {[%clk 0:02:20]}  b5 {[%clk 0:00:22]} 19. axb6 {[%clk 0:02:08]}  Rxb6 {[%clk 0:00:23]} 20. Qa2 {[%clk 0:02:05]}  Rb4 {[%clk 0:00:19]} 21. e5 {[%clk 0:02:01]}  Rxc4 {[%clk 0:00:13]} 22. Qxc4 {[%clk 0:02:00]}  Nb6 {[%clk 0:00:13]} 23. Qxc6 {[%clk 0:01:56]}  Bd7 {[%clk 0:00:04]} 24. Qxc7 {[%clk 0:01:54]}  Rc8 {[%clk 0:00:05]} 25. Qxa7 {[%clk 0:01:52]}  Ra8 {[%clk 0:00:06]} 26. Qxa8 {[%clk 0:01:46]}  Nxa8 {[%clk 0:00:06]} 27. exf6 {[%clk 0:01:44]}  Bxf5 {[%clk 0:00:06]} 28. fxg7 {[%clk 0:01:42]}  Qc8 {[%clk 0:00:06]} 29. Nd5 {[%clk 0:01:37]}  Kxg7 {[%clk 0:00:05]} 30. Ne7 {[%clk 0:01:36]}  Qe6 {[%clk 0:00:05]} 31. Nxf5+ {[%clk 0:01:36]}  Kh7 {[%clk 0:00:06]} 32. Rxa8 {[%clk 0:01:33]}  Qe1+ {[%clk 0:00:06]} 33. Rf1 {[%clk 0:01:33]}  Qxc1 {[%clk 0:00:07]} 34. Rxc1 {[%clk 0:01:32]} 1-0


[Site "https://www.chess.com"]

[Event "Titled Tuesday Blitz August 3 2021"]
[White "Ouellet, Maili-Jade"]
[Black "Aggelis, Nikolaos"]
[WhiteFideId "2620472"]
[BlackFideId "4213220"]
[WhiteElo "1886"]
[BlackElo "2154"]
[Result "1/2-1/2"]
[Round "10"]
[TimeControl "180+1"]
[Date "2021.08.03"]
[WhiteClock "0:01:10"]
[BlackClock "0:01:56"]

1. d4 {[%clk 0:03:00]}  Nf6 {[%clk 0:02:58]} 2. c4 {[%clk 0:03:01]}  g6 {[%clk 0:02:58]} 3. Nc3 {[%clk 0:03:01]}  d5 {[%clk 0:02:57]} 4. cxd5 {[%clk 0:03:01]}  Nxd5 {[%clk 0:02:58]} 5. e4 {[%clk 0:03:01]}  Nxc3 {[%clk 0:02:58]} 6. bxc3 {[%clk 0:03:02]}  Bg7 {[%clk 0:02:58]} 7. Nf3 {[%clk 0:03:03]}  O-O {[%clk 0:02:59]} 8. Rb1 {[%clk 0:03:03]}  b6 {[%clk 0:02:57]} 9. Be2 {[%clk 0:03:03]}  Bb7 {[%clk 0:02:57]} 10. Qd3 {[%clk 0:03:03]}  Ba6 {[%clk 0:02:57]} 11. Qe3 {[%clk 0:03:04]}  Bxe2 {[%clk 0:02:58]} 12. Qxe2 {[%clk 0:03:04]}  e6 {[%clk 0:02:58]} 13. O-O {[%clk 0:03:04]}  c5 {[%clk 0:02:59]} 14. dxc5 {[%clk 0:03:01]}  Qc7 {[%clk 0:02:59]} 15. cxb6 {[%clk 0:02:58]}  axb6 {[%clk 0:03:00]} 16. c4 {[%clk 0:02:56]}  Nd7 {[%clk 0:02:59]} 17. Be3 {[%clk 0:02:53]}  Ra4 {[%clk 0:02:58]} 18. Rfc1 {[%clk 0:02:50]}  Rfa8 {[%clk 0:02:57]} 19. Rc2 {[%clk 0:02:50]}  Nc5 {[%clk 0:02:50]} 20. Bd4 {[%clk 0:02:40]}  Qa7 {[%clk 0:02:35]} 21. Rbb2 {[%clk 0:02:32]}  Rd8 {[%clk 0:02:27]} 22. Rd2 {[%clk 0:02:24]}  Qa6 {[%clk 0:02:00]} 23. Bxg7 {[%clk 0:02:10]}  Rxd2 {[%clk 0:01:57]} 24. Qxd2 {[%clk 0:02:06]}  Kxg7 {[%clk 0:01:57]} 25. Qd4+ {[%clk 0:02:05]}  Kg8 {[%clk 0:01:57]} 26. Qd8+ {[%clk 0:02:03]}  Kg7 {[%clk 0:01:57]} 27. Qd4+ {[%clk 0:01:31]}  Kg8 {[%clk 0:01:56]} 28. Qd8+ {[%clk 0:01:21]}  Kg7 {[%clk 0:01:56]} 29. Qd4+ {[%clk 0:01:10]} 1/2-1/2


[Site "https://www.chess.com"]

[Event "Titled Tuesday Blitz August 3 2021"]
[White "Pajeken, Jakob Leon"]
[Black "Erdogdu, Mert"]
[WhiteFideId "12942839"]
[BlackFideId "6301495"]
[WhiteElo "2231"]
[BlackElo "2485"]
[Result "0-1"]
[Round "10"]
[TimeControl "180+1"]
[Date "2021.08.03"]
[WhiteClock "0:02:27"]
[BlackClock "0:02:18"]

1. d4 {[%clk 0:03:00]}  d5 {[%clk 0:02:40]} 2. Nf3 {[%clk 0:02:57]}  e6 {[%clk 0:02:40]} 3. Bf4 {[%clk 0:02:54]}  Bd6 {[%clk 0:02:39]} 4. Bg3 {[%clk 0:02:45]}  Nf6 {[%clk 0:02:34]} 5. e3 {[%clk 0:02:44]}  c5 {[%clk 0:02:34]} 6. c3 {[%clk 0:02:44]}  Qc7 {[%clk 0:02:34]} 7. Nbd2 {[%clk 0:02:40]}  Nbd7 {[%clk 0:02:34]} 8. Bd3 {[%clk 0:02:40]}  O-O {[%clk 0:02:33]} 9. O-O {[%clk 0:02:39]}  Bxg3 {[%clk 0:02:32]} 10. hxg3 {[%clk 0:02:38]}  b6 {[%clk 0:02:32]} 11. e4 {[%clk 0:02:37]}  dxe4 {[%clk 0:02:32]} 12. Nxe4 {[%clk 0:02:37]}  Bb7 {[%clk 0:02:32]} 13. dxc5 {[%clk 0:02:34]}  Bxe4 {[%clk 0:02:27]} 14. cxb6 {[%clk 0:02:33]}  axb6 {[%clk 0:02:25]} 15. Bxe4 {[%clk 0:02:33]}  Nxe4 {[%clk 0:02:24]} 16. Qc2 {[%clk 0:02:32]}  Nef6 {[%clk 0:02:21]} 17. a3 {[%clk 0:02:27]}  Rfd8 {[%clk 0:02:18]} 0-1


[Site "https://www.chess.com"]

[Event "Titled Tuesday Blitz August 3 2021"]
[White "Palchuk, Andrii"]
[Black "Vlassov, Nikolai"]
[WhiteFideId "14176688"]
[BlackFideId "4103360"]
[WhiteElo "2284"]
[BlackElo "2407"]
[Result "0-1"]
[Round "10"]
[TimeControl "180+1"]
[Date "2021.08.03"]
[WhiteClock "0:00:04"]
[BlackClock "0:01:07"]

1. e4 {[%clk 0:03:00]}  c5 {[%clk 0:02:59]} 2. Nf3 {[%clk 0:03:01]}  d6 {[%clk 0:02:59]} 3. d4 {[%clk 0:03:01]}  cxd4 {[%clk 0:03:00]} 4. Nxd4 {[%clk 0:03:01]}  Nf6 {[%clk 0:02:59]} 5. Nc3 {[%clk 0:03:02]}  g6 {[%clk 0:02:59]} 6. f3 {[%clk 0:03:02]}  Bg7 {[%clk 0:02:59]} 7. Be3 {[%clk 0:03:02]}  a6 {[%clk 0:02:59]} 8. Qd2 {[%clk 0:03:00]}  h5 {[%clk 0:02:58]} 9. O-O-O {[%clk 0:02:58]}  b5 {[%clk 0:02:59]} 10. Kb1 {[%clk 0:02:57]}  Bb7 {[%clk 0:02:59]} 11. Bd3 {[%clk 0:02:47]}  Nbd7 {[%clk 0:02:58]} 12. Rhe1 {[%clk 0:02:40]}  Rc8 {[%clk 0:02:57]} 13. Bg5 {[%clk 0:02:38]}  Ne5 {[%clk 0:02:52]} 14. f4 {[%clk 0:02:22]}  Nc4 {[%clk 0:02:40]} 15. Bxc4 {[%clk 0:02:21]}  Rxc4 {[%clk 0:02:39]} 16. e5 {[%clk 0:02:10]}  dxe5 {[%clk 0:02:39]} 17. fxe5 {[%clk 0:02:11]}  Ng4 {[%clk 0:02:39]} 18. Ne6 {[%clk 0:01:57]}  Qxd2 {[%clk 0:02:33]} 19. Nxg7+ {[%clk 0:01:57]}  Kf8 {[%clk 0:02:33]} 20. Rxd2 {[%clk 0:01:55]}  Kxg7 {[%clk 0:02:30]} 21. Bxe7 {[%clk 0:01:55]}  Re8 {[%clk 0:02:26]} 22. Bf6+ {[%clk 0:01:51]}  Kh6 {[%clk 0:02:16]} 23. Rde2 {[%clk 0:01:41]}  Nxf6 {[%clk 0:02:10]} 24. exf6 {[%clk 0:01:40]}  Rxe2 {[%clk 0:02:10]} 25. Rxe2 {[%clk 0:01:41]}  Rf4 {[%clk 0:02:10]} 26. b3 {[%clk 0:01:28]}  Rxf6 {[%clk 0:02:09]} 27. Kb2 {[%clk 0:01:27]}  h4 {[%clk 0:02:07]} 28. a4 {[%clk 0:01:22]}  b4 {[%clk 0:01:58]} 29. Nd1 {[%clk 0:01:21]}  a5 {[%clk 0:01:58]} 30. c3 {[%clk 0:01:12]}  bxc3+ {[%clk 0:01:56]} 31. Nxc3 {[%clk 0:01:12]}  g5 {[%clk 0:01:49]} 32. Na2 {[%clk 0:01:09]}  g4 {[%clk 0:01:49]} 33. b4 {[%clk 0:01:10]}  axb4 {[%clk 0:01:47]} 34. Nxb4 {[%clk 0:01:11]}  g3 {[%clk 0:01:43]} 35. hxg3 {[%clk 0:01:10]}  hxg3 {[%clk 0:01:43]} 36. Kc3 {[%clk 0:00:32]}  Rf2 {[%clk 0:01:40]} 37. Kd2 {[%clk 0:00:31]}  Bxg2 {[%clk 0:01:37]} 38. Nd3 {[%clk 0:00:28]}  Rxe2+ {[%clk 0:01:32]} 39. Kxe2 {[%clk 0:00:29]}  Kg5 {[%clk 0:01:30]} 40. a5 {[%clk 0:00:26]}  Bb7 {[%clk 0:01:23]} 41. Ke3 {[%clk 0:00:20]}  f5 {[%clk 0:01:22]} 42. Ne5 {[%clk 0:00:19]}  f4+ {[%clk 0:01:21]} 43. Ke2 {[%clk 0:00:18]}  Kh4 {[%clk 0:01:12]} 44. Kf1 {[%clk 0:00:17]}  f3 {[%clk 0:01:09]} 45. Nd3 {[%clk 0:00:03]}  Ba6 {[%clk 0:01:08]} 46. Kg1 {[%clk 0:00:03]}  Bxd3 {[%clk 0:01:07]} 47. a6 {[%clk 0:00:03]}  f2+ {[%clk 0:01:07]} 48. Kh1 {[%clk 0:00:04]}  f1=Q# {[%clk 0:01:07]} 0-1


[Site "https://www.chess.com"]